Cogmind - Beta 12 @@@ ROGUE MODE // 2023.06.01 @ 22:37:20 Player: Mr Goldstein Result: Self-destructed Performance ------------- Evolutions (2) 1000 Regions Visited (7) 1400 Robots Destroyed (3) 15 Value Destroyed (30) 30 Prototype IDs (0) 0 Alien Tech Used (0) 0 Bonus (0) 0 TOTAL SCORE: 2445 Bonus ------- None Cogmind --------- Core Integrity 544/550 Matter 295/300 Energy 99/100 System Corruption 0% Temperature Cool (0) Movement Core (50) Location -8/Materials Parts ------- > --- POWER (1) -------- (None) > --- PROPULSION (4) --- (None) > --- UTILITY (4) ------ Light Armor Plating > --- WEAPON (2) ------- (None) > --- INVENTORY (5) ---- Small Storage Unit System Shield Plasma Cutter Peak State ------------ > --- POWER ------------ (None) > --- PROPULSION ------- VTOL Module > --- UTILITY ---------- Light Armor Plating > --- WEAPON ----------- (None) > --- INVENTORY -------- Small Storage Unit Plasma Cutter [Rating: 3] Favorites ----------- Power None Propulsion VTOL Module Flight Unit VTOL Module Utility Light Armor Plating Protection Light Armor Plating Weapon Grenade Launcher Launcher Grenade Launcher Build | -11 -10 -10 -9 -9 -9 -8 -8 ------- Run | Jun Mat Min Mat Min Exi Min Mat Slots Evolved 4 | . . . 2 . . . 2 Power . | . . . . . . . . Propulsion 2 | . . . 1 . . . 1 Utility 2 | . . . 1 . . . 1 Weapon . | . . . . . . . . Parts Attached 5 | . . 1 1 2 . . 1 Power . | . . . . . . . . Engine . | . . . . . . . . Core . | . . . . . . . . Reactor . | . . . . . . . . Propulsion 1 | . . . . 1 . . . Treads . | . . . . . . . . Leg . | . . . . . . . . Wheel . | . . . . . . . . Hover . | . . . . . . . . Flight 1 | . . . . 1 . . . Utility 1 | . . . . . . . 1 Device . | . . . . . . . . Storage . | . . . . . . . . Processor . | . . . . . . . . Hackware . | . . . . . . . . Protection 1 | . . . . . . . 1 Artifact . | . . . . . . . . Weapon 3 | . . 1 1 1 . . . Energy Gun . | . . . . . . . . Energy Cannon . | . . . . . . . . Ballistic Gun . | . . . . . . . . Ballistic Cannon . | . . . . . . . . Launcher 3 | . . 1 1 1 . . . Special Weapon . | . . . . . . . . Impact Weapon . | . . . . . . . . Slashing Weapon . | . . . . . . . . Piercing Weapon . | . . . . . . . . Special Melee Weapon . | . . . . . . . . Unidentified Prototypes . | . . . . . . . . Parts Lost 2 | . . . . 1 . . 1 Power . | . . . . . . . . Propulsion 1 | . . . . . . . 1 Utility . | . . . . . . . . Weapon 1 | . . . . 1 . . . Highest Loss Streak 1 | . . . . 1 . . 1 To Critical Strikes . | . . . . . . . . Average Slot Usage (%) 7 | . . . 2 9 11 11 15 Flight 6 | . . . . 9 11 11 6 Naked Turns 137 | . 37 26 52 22 . . . Heaviest Build 3 | . . . . . . . 3 Greatest Support 4 | 3 3 3 3 4 4 4 4 Greatest Overweight (x) . | . . . . . . . . Average Overweight (x) . | . . . . . . . . Largest Inventory Capacity 5 | 5 5 5 5 5 5 5 5 Average Capacity 5 | 5 5 5 5 5 5 5 5 Most Carried 3 | 1 3 3 3 3 2 2 3 Average Carried 2 | . 2 2 2 2 2 2 2 Final Capacity 5 | 5 5 5 5 5 5 5 5 Final Carried 3 | 1 3 3 3 2 2 2 3 Class Distribution -------------------- 100% | Mutant Dominant Class ---------------- Mutant | -10/Materials Mutant | -10/Mines Mutant | -9/Materials Mutant | -9/Mines Mutant | -9/Exiles Mutant | -8/Mines Mutant | -8/Materials Resources | -11 -10 -10 -9 -9 -9 -8 -8 ----------- Run | Jun Mat Min Mat Min Exi Min Mat Matter Collected 257 | 200 . . . 52 . 5 . Remotely . | . . . . . . . . Salvage Created 15 | . . 15 . . . . . Parts 2 | . . 2 . . . . . Haulers Intercepted . | . . . . . . . . Recyclers Shooed . | . . . . . . . . Parts Field Recycled . | . . . . . . . . Retrieved Matter . | . . . . . . . . Parts Self-Destructed . | . . . . . . . . Prevented . | . . . . . . . . Kills | -11 -10 -10 -9 -9 -9 -8 -8 ------- Run | Jun Mat Min Mat Min Exi Min Mat Combat Hostiles Destroyed 3 | . . 3 . . . . . AOE 3 | . . 3 . . . . . Classes Destroyed 1 | . . 1 . . . . . Swarmer 3 | . . 3 . . . . . Best Kill Streak 3 | . . 3 . . . . . Combat Bots Only 3 | . . 3 . . . . . Max Kills in Single Turn 2 | . . 2 . . . . . Gunslinging . | . . . . . . . . Exploded 2 | . . 2 . . . . . Melee . | . . . . . . . . Uniques/NPCs Destroyed . | . . . . . . . . Combat | -11 -10 -10 -9 -9 -9 -8 -8 -------- Run | Jun Mat Min Mat Min Exi Min Mat Damage Taken 452 | . . 7 154 152 . 79 60 Core 322 | . . . 112 140 . 64 6 Absorbed by Shields . | . . . . . . . . Core Remaining (%) 73 | 100 . 100 . . . 21 . Volleys Fired 4 | . . 2 2 . . . . Largest 1 | . . 1 1 . . . . Hottest 30 | . . 30 30 . . . . Shots Fired 4 | . . 2 2 . . . . Gun . | . . . . . . . . Cannon . | . . . . . . . . Launcher 4 | . . 2 2 . . . . Special . | . . . . . . . . Kinetic . | . . . . . . . . Thermal . | . . . . . . . . Explosive 4 | . . 2 2 . . . . Electromagnetic . | . . . . . . . . Robot Hit Streak . | . . . . . . . . Robot Miss Streak . | . . . . . . . . Penetration Max . | . . . . . . . . Secondary Targets . | . . . . . . . . Shots Hit Robots . | . . . . . . . . Core Hits 5 | . . 3 1 1 . . . Critical Kills . | . . . . . . . . Critical Parts Destroyed . | . . . . . . . . Critical Strikes . | . . . . . . . . Melee Attacks . | . . . . . . . . Impact . | . . . . . . . . Slashing . | . . . . . . . . Piercing . | . . . . . . . . Sneak Attacks . | . . . . . . . . Combat Hostiles . | . . . . . . . . Follow-up Attacks . | . . . . . . . . Damage Inflicted 240 | . . 190 46 4 . . . Guns . | . . . . . . . . Cannons . | . . . . . . . . Explosions 227 | . . 190 37 . . . . Melee . | . . . . . . . . Ramming 13 | . . . 9 4 . . . Kinetic . | . . . . . . . . Thermal . | . . . . . . . . Explosive 227 | . . 190 37 . . . . Electromagnetic . | . . . . . . . . Impact . | . . . . . . . . Slashing . | . . . . . . . . Piercing . | . . . . . . . . Highest Corruption . | . . . . . . . . Average Corruption . | . . . . . . . . Corruption Purged . | . . . . . . . . Corruption Blocked . | . . . . . . . . Overload Shots . | . . . . . . . . Overflow Damage 6 | . . 6 . . . . . Projectiles . | . . . . . . . . Explosions 6 | . . 6 . . . . . Melee . | . . . . . . . . Knockbacks . | . . . . . . . . Impact . | . . . . . . . . Kinetic . | . . . . . . . . Secondary . | . . . . . . . . Self-Inflicted Damage 59 | . . . 57 2 . . . Shots 2 | . . . 2 . . . . Rammed 4 | . . . 2 2 . . . Targets Rammed 4 | . . . 2 2 . . . Kicked . | . . . . . . . . Crushed . | . . . . . . . . Highest Temperature 2 | . . . 2 . . . . Average Temperature 2 | . . . 2 . . . . Received Heat Transfer 122 | . . . 48 29 . 45 . Siege Activations . | . . . . . . . . Robots Corrupted . | . . . . . . . . Combat Hostiles . | . . . . . . . . Parts Fried . | . . . . . . . . Impact Corruptions . | . . . . . . . . Robots Melted . | . . . . . . . . Combat Hostiles . | . . . . . . . . Parts Melted . | . . . . . . . . Heat Transferred . | . . . . . . . . Parts Sabotaged . | . . . . . . . . Parts Stolen . | . . . . . . . . Parts Stripped . | . . . . . . . . Power Chain Reactions . | . . . . . . . . Missiles Intercepted . | . . . . . . . . Alert | -11 -10 -10 -9 -9 -9 -8 -8 ------- Run | Jun Mat Min Mat Min Exi Min Mat Peak Influence 96 | . . 96 96 63 . 60 43 Initial 43 | . . . 37 43 . . 23 Average 43 | . . 90 44 61 . 18 29 Maximum Alert Level . | . . . . . . . . Low Security (%) 100 | 100 100 100 100 100 . 100 100 Level 1 . | . . . . . . . . Level 2 . | . . . . . . . . Level 3 . | . . . . . . . . Level 4 . | . . . . . . . . Level 5 . | . . . . . . . . High Security . | . . . . . . . . Max Security . | . . . . . . . . Squads Dispatched 2 | . 1 . . . . . 1 Investigation . | . . . . . . . . Extermination . | . . . . . . . . Reinforcement 2 | . 1 . . . . . 1 Assault . | . . . . . . . . Garrison . | . . . . . . . . Intercept . | . . . . . . . . Searches Triggered . | . . . . . . . . Construction Impeded . | . . . . . . . . Haulers Reinforced . | . . . . . . . . Active Scanning Responses . | . . . . . . . . Cargo Convoy Interrupts . | . . . . . . . . Stealth | -11 -10 -10 -9 -9 -9 -8 -8 --------- Run | Jun Mat Min Mat Min Exi Min Mat Distress Signals 1 | . . . . . . . 1 Communications Jammed . | . . . . . . . . Distress Signals . | . . . . . . . . Times Spotted 47 | . 1 3 9 16 . 6 12 Peak Tracking Total 15 | . 1 3 6 15 . 6 13 Tactical Retreats 4 | . . . 1 . . 2 1 Traps | -11 -10 -10 -9 -9 -9 -8 -8 ------- Run | Jun Mat Min Mat Min Exi Min Mat Traps Triggered . | . . . . . . . . Indirectly . | . . . . . . . . Trap Hack Attempts . | . . . . . . . . Triggered . | . . . . . . . . Disarmed . | . . . . . . . . Reprogrammed . | . . . . . . . . Reused . | . . . . . . . . Traps Extracted . | . . . . . . . . Installed . | . . . . . . . . Triggered . | . . . . . . . . Machines | -11 -10 -10 -9 -9 -9 -8 -8 ---------- Run | Jun Mat Min Mat Min Exi Min Mat Machines Disabled . | . . . . . . . . Max in Single Turn . | . . . . . . . . Machines Repaired . | . . . . . . . . Machines Sabotaged . | . . . . . . . . Overloaded Fab Kills . | . . . . . . . . Hacking | -11 -10 -10 -9 -9 -9 -8 -8 --------- Run | Jun Mat Min Mat Min Exi Min Mat Machines Accessed 3 | . 1 . 1 . 1 . . Terminals 2 | . 1 . 1 . . . . Fabricators . | . . . . . . . . Repair Stations . | . . . . . . . . Recycling Units . | . . . . . . . . Scanalyzers . | . . . . . . . . Garrison Access . | . . . . . . . . Total Hacks 7 | . 3 . 3 . 1 . . Successful 2 | . . . 1 . 1 . . Failed 5 | . 3 . 2 . . . . Catastrophic 1 | . 1 . . . . . . Database Lockouts . | . . . . . . . . Manual 6 | . 3 . 3 . . . . Terminals 6 | . 3 . 3 . . . . Fabricators . | . . . . . . . . Repair Stations . | . . . . . . . . Recycling Units . | . . . . . . . . Scanalyzers . | . . . . . . . . Garrison Access . | . . . . . . . . Terminal Hacks 2 | . . . 1 . 1 . . Record 1 | . . . . . 1 . . Branch Access Points 1 | . . . 1 . . . . Fabricator Hacks . | . . . . . . . . Repair Station Hacks . | . . . . . . . . Recycling Unit Hacks . | . . . . . . . . Scanalyzer . | . . . . . . . . Garrison Access Hacks . | . . . . . . . . Unauthorized Hacks . | . . . . . . . . Terminals . | . . . . . . . . Fabricators . | . . . . . . . . Repair Stations . | . . . . . . . . Recycling Units . | . . . . . . . . Scanalyzers . | . . . . . . . . Garrison Access . | . . . . . . . . Data Cores Recovered . | . . . . . . . . Used . | . . . . . . . . Hacking Detections 1 | . 1 . . . . . . Full Trace Events . | . . . . . . . . Feedback Events . | . . . . . . . . Feedback Blocked . | . . . . . . . . Robot Schematics Acquired . | . . . . . . . . Robots Built . | . . . . . . . . Authchips . | . . . . . . . . Time . | . . . . . . . . Total Robot Build Rating . | . . . . . . . . Part Schematics Acquired . | . . . . . . . . Parts Built . | . . . . . . . . Authchips . | . . . . . . . . Time . | . . . . . . . . Total Part Build Rating . | . . . . . . . . Parts Repaired . | . . . . . . . . Time . | . . . . . . . . Parts Recycled . | . . . . . . . . Recycled Matter . | . . . . . . . . Retrieved Matter . | . . . . . . . . Retrieved Components . | . . . . . . . . Parts Scanalyzed . | . . . . . . . . Part Schematics Acquired . | . . . . . . . . Parts Damaged . | . . . . . . . . Bothacking | -11 -10 -10 -9 -9 -9 -8 -8 ------------ Run | Jun Mat Min Mat Min Exi Min Mat Used RIF Installer . | . . . . . . . . Robots Hacked . | . . . . . . . . Non-combat . | . . . . . . . . Combat . | . . . . . . . . Robot Hacks Applied . | . . . . . . . . Relay Couplers Released . | . . . . . . . . Fabnet Peak Effective % . | . . . . . . . . Robots Rewired . | . . . . . . . . Allies Hacked . | . . . . . . . . Hacks Repelled . | . . . . . . . . Allies | -11 -10 -10 -9 -9 -9 -8 -8 -------- Run | Jun Mat Min Mat Min Exi Min Mat Total Allies 2 | . . . . 2 . . . Largest Group 2 | . . . . 2 2 . . Highest-Rated Group 42 | . . . . 42 42 . . Highest-Rated Ally 31 | . . . . 31 31 . . Total Orders . | . . . . . . . . Ally Attacks . | . . . . . . . . Total Damage . | . . . . . . . . Kills . | . . . . . . . . Allies Corrupted . | . . . . . . . . Allies Melted . | . . . . . . . . Intel | -11 -10 -10 -9 -9 -9 -8 -8 ------- Run | Jun Mat Min Mat Min Exi Min Mat Robot Analysis Total . | . . . . . . . . Derelict Logs Recovered 2 | . . . . 2 . . . Drone Launches . | . . . . . . . . Drone Recoveries . | . . . . . . . . Exploration | -11 -10 -10 -9 -9 -9 -8 -8 ------------- Run | Jun Mat Min Mat Min Exi Min Mat Turns Passed 404 | 12 37 31 56 135 44 59 30 Spaces Moved 934 | 23 69 51 97 331 126 167 70 Core 295 | 23 69 51 97 37 . . 18 Treads . | . . . . . . . . Legs . | . . . . . . . . Wheels . | . . . . . . . . Hover . | . . . . . . . . Flight 639 | . . . . 294 126 167 52 Fastest Speed 35 | 50 50 50 50 35 35 35 35 Average Speed 39 | 50 50 50 50 36 35 35 38 Slowest Speed 50 | 50 50 50 50 50 35 35 50 Overloaded Moves . | . . . . . . . . Propulsion Burnouts . | . . . . . . . . Robots Hopped 5 | . . . . 3 . 2 . Cave-ins Triggered . | . . . . . . . . Exploration Rate (%) 34 | 4 23 19 18 90 48 61 14 Regions Visited 7 Branch Regions 4 Pre-discovered Areas 2 | . . . . 1 1 . . Known Exits Taken 1 | . . . 1 . . . . Unknown Exits Taken 6 | 1 1 1 . 1 1 1 . Scrap Searched 3 | . . . . 2 . 1 . Spaces Dug 15 | . . . 15 . . . . Terrain Destroyed 32 | . . 17 15 . . . . Melee . | . . . . . . . . Projectile . | . . . . . . . . AOE 32 | . . 17 15 . . . . Terrain Rammed . | . . . . . . . . Walls Destroyed . | . . . . . . . . Machines Disabled . | . . . . . . . . Actions | -11 -10 -10 -9 -9 -9 -8 -8 --------- Run | Jun Mat Min Mat Min Exi Min Mat Total 950 | 23 70 54 102 340 125 164 72 Wait 9 | . . . . 9 . . . Move 917 | 22 68 50 96 324 125 162 70 Hop 5 | . . . . 3 . 2 . Pick Up 4 | 1 2 . . . . . 1 Fast Attach 2 | . . . . 1 . . 1 Attach 3 | . . 1 1 1 . . . Detach 2 | . . 1 1 . . . . Swap . | . . . . . . . . Drop . | . . . . . . . . Fire 4 | . . 2 2 . . . . Melee . | . . . . . . . . Ram 4 | . . . 2 2 . . . Kick . | . . . . . . . . Crush . | . . . . . . . . Escape Stasis . | . . . . . . . . Rewire . | . . . . . . . . Trap . | . . . . . . . . Miscellaneous . | . . . . . . . . Route ------- -11/Junkyard -10/Materials -10/Mines -9/Materials (discovered 3 exits: *Min / Sto x2) -9/Mines (discovered 2 exits: [*Mat] / *Exi) -9/Exiles (discovered 2 exits: [*Min x2]) -8/Mines -8/Materials History --------- Turn | Location | Event 6 | -11/Junkyard | Discovered new exit (range 15) 13 | -11/Junkyard | Entered Materials 46 | -10/Materials | Discovered new exit (range 9) 50 | -10/Materials | Entered Mines 78 | -10/Mines | Discovered new exit (range 10) 81 | -10/Mines | Entered Materials 81 | -9/Materials | Evolved 2 slots: Propulsion x1, Utility x1 110 | -9/Materials | Identified exit to Mines 110 | -9/Materials | Identified exit to Storage 137 | -9/Materials | Entered Mines 142 | -9/Mines | Assembled infested the area 147 | -9/Mines | Assisted by a Guerilla fighting off Assembled 152 | -9/Mines | Core integrity fell below 50% 177 | -9/Mines | Learned location of Zion (-7) 226 | -9/Mines | Learned Materials trap positions 257 | -9/Mines | Discovered new exit (range 5) 261 | -9/Mines | Deemed a non-threat by the Exiles lab entrance 261 | -9/Mines | Discovered new exit (range 5) 272 | -9/Mines | Entered Exiles 272 | -9/Exiles | Accompanied by 2 allies 278 | -9/Exiles | Discovered new exit (range 15) 282 | -9/Exiles | Met 8R-AWN 287 | -9/Exiles | Met EX-HEX 301 | -9/Exiles | Met EX-DEC 302 | -9/Exiles | Led the pair of lost Derelicts to a safe place 312 | -9/Exiles | Discovered new exit (range 14) 313 | -9/Exiles | Build established: Mutant 316 | -9/Exiles | Entered Mines 371 | -8/Mines | Discovered new exit (range 12) 375 | -8/Mines | Entered Materials 375 | -8/Materials | Evolved 2 slots: Propulsion x1, Utility x1 376 | -8/Materials | Loaded intel: 7 trap records 405 | -8/Materials | Self-destructed Last Messages --------------- 00337_ Acquired 5 matter. 00354_ T-07 Excavator is excavating. 00354_ K-01 Serf collects debris. 00371_ EXIT=FOUND 00374_ K-01 Serf collects debris. PARAMETERS=PROPULSION+1,UTILITY+1 LOCATION=UNKNOWN GOAL=ESCAPE Loading Materials trap records (x7)... 00379_ Acquired Lgt. Armor Plating. 00383_ T-07 Excavator is excavating. 00392_ O-16 Technician sends out distress signal. 00392_ O-16 Technician: "IFF HANDSHAKE FAILED. SECURING TERMINAL." 00395_ Acquired System Shield. 00395_ O-16 Technician uses terminal to summon reinforcements. 00395_ ALERT: Hostiles spotted, dispatching reinforcements to Terminal M011. 00395_ O-16 Technician locks terminal. 00396_ VTOL Module destroyed. 00402_ K-01 Serf cleans the Material Compactor. Map ----- +----------------------------------------------------+ | | | | | | | | | | | | | | | | | | | | | | | | | | | | | | | | | | | | | | | | | ?????????????????????????????????????????????????? | | ?????????????????????????????????????????????????? | | ?????????????????????##########??????????????????? | | ?????????????????????# #??????????????????? | | ?????????????????????# ! #??????????????????? | | ?????????????????????# @ ####???????????????? | | ?????????????????????# # +?????#+#?###+##? | | ?????????????????????# """k # ####### ### ## | | ?????????????????????# """"" s * | | ?????????????????????# """"" # | | ?????????????????????# """"" # s """ ## | | ?????????????????????# """ # """ ! "" | | ?????????????????????#??####### """ [ T" | | ??????????????????????????????##### "" | | ??????????????????????????????????# ! ## | | ??????????????????????????????????# """ !! #? | | ??????????????????????????????????# """ ! #? | | ?????????????????????????????????#T """ / #? | | ?????????????????????????????????## ! #? | | ??????????????????????????????????# ! #? | | ??????????????????????????????????## ####### ##? | | ???????????????????????????????????# #?????# #?? | | ???????????????????????????????????+ /?????# #?? | | ???????????????????????????????????# #?????# #?? | | ???????????????????????????????????? #?????# #?? | | ????????????????????????????????????????????# #?? | | ???????????????????????????????????#????????# # " | | ??????????????????????????????###### ???????# / | | ?????????????????????????????? #?????# # | | ????????????????????????????? ##### ### | +----------------------------------------------------+ Best States ------------- Heat Dissipation 31 Energy Generation 5 Energy Capacity 100 Matter Stores 300 Matter Capacity 300 Sight Range 16 Terrain Scan Density 10 Armor Coverage 150 Evasion (%) 63 Item Schematics ----------------- None Robot Schematics ------------------ None Fabricated ------------ Nothing Alien Tech Used ----------------- None Achievements -------------- None Challenges ------------ None Game ------ Seed MissileDerelictAxe Manual? 0 Play Time 00:07:21 Cumulative 265.9 hours Start 2023.06.01 @ 21:50:47 End 2023.06.01 @ 22:37:20 Sessions 1 Manual Loads 0 Difficulty Rogue Special Mode None Game No. 781 Rogue 781 Adventurer 0 Explorer 0 Win Type - Total 15 Types 8/0/5/2/0/0/0/0/0 Lore% 88 Gallery% 86 Achievement% 77 Wizard Run 0 Options --------- ASCII 0 Keyboard 0 Movement Numpad Keybinds 0 Fullscreen 1 Font 16/SmallcapsGlow Map View 75x55 Tactical HUD 1 Map Filters NONE Filters NONE Steam 1 RUN: 1a1d2d54-ed97-467e-8eae-ac7efd5c332d